[Event "23rd Pirc Memorial Juniors 202"]
[Site "Maribor"]
[Date "2020.08.12"]
[Round "1.1"]
[White "Drevensek, Doroteja"]
[Black "Drevensek, Gasper"]
[Result "1/2-1/2"]
[ECO "B07"]
[WhiteElo "1381"]
[BlackElo "1446"]
[Annotator "NA RC"]
[PlyCount "65"]
[EventDate "2020.08.12"]
[EventType "tourn"]
[EventCountry "SLO"]
[SourceTitle "playchess.com"]
[Source "ChessBase"]
[SourceQuality "1"]
[TimeControl "3600+30"]

1. e4 {[%emt 0:00:00]} d6 {[%emt 0:00:00]} 2. d4 {[%emt 0:00:26]} Nf6 {[%emt 0:00:14]} 3. Nc3 {[%emt 0:00:20]} g6 {[%emt 0:00:30]} 4. Be3 {[%emt 0:00:11]} Bg7 {[%emt 0:00:18]} 5. Qd2 {[%emt 0:01:38]} c6 {[%emt 0:00:29]} 6. Bh6 {[%emt 0:03:15]} Bxh6 {[%emt 0:01:07]} 7. Qxh6 {[%emt 0:00:07]} Qa5 {[%emt 0:00:47]} 8. Bd3 {[%emt 0:02:15]} Nbd7 {[%emt 0:00:23]} 9. Nf3 {[%emt 0:03:54]} c5 {[%emt 0:01:54]} 10. d5 {[%emt 0:02:40]} c4 {[%emt 0:01:08]} 11. Bxc4 {[%emt 0:00:07]} Qc5 {[%emt 0:00:06]} 12. Bd3 {[%emt 0:01:05]} Qxf2+ {[%emt 0:00:19]} 13. Kxf2 {[%emt 0:00:01]} Ng4+ {[%emt 0:00:08]} 14. Kg3 {[%emt 0:01:32]} Nxh6 {[%emt 0:00:16]} 15. Nb5 {[%emt 0:05:21]} O-O {[%emt 0:03:51]} 16. Nbd4 {[%emt 0:04:03]} Nc5 {[%emt 0:04:40]} 17. Rhf1 {[%emt 0:03:07]} Bd7 {[%emt 0:02:19]} 18. h3 {[%emt 0:06:17]} Rac8 {[%emt 0:00:55]} 19. Rac1 {[%emt 0:00:41]} Rc7 {[%emt 0:01:40]} 20. Nd2 {[%emt 0:01:05]} Rfc8 {[%emt 0:02:03]} 21. Bb5 {[%emt 0:01:14]} a6 {[%emt 0:00:46]} 22. Bxd7 {[%emt 0:00:40]} Nxd7 {[%emt 0:00:14]} 23. c3 {[%emt 0:03:24]} Ne5 {[%emt 0:02:04]} 24. N2f3 {[%emt 0:05:31]} Rc4 {[%emt 0:05:38]} 25. Nd2 {[%emt 0:11:22]} R4c7 {[%emt 0:02:27]} 26. Rc2 {[%emt 0:01:03]} Kg7 {[%emt 0:01:45]} 27. N4f3 {[%emt 0:03:45]} f6 {[%emt 0:06:43]} 28. Nxe5 {[%emt 0:00:56]} dxe5 {[%emt 0:00:29]} 29. Rd1 {[%emt 0:02:17]} Nf7 {[%emt 0:00:22]} 30. c4 {[%emt 0:00:55]} Nd6 {[%emt 0:02:15]} 31. Rdc1 {[%emt 0:00:25]} f5 {[%emt 0:02:56]} 32. c5 {[%emt 0:01:56]} f4+ {[%emt 0:00:24]} 33. Kf3 {[%emt 0:00:28]} 1/2-1/2

[Event "23rd Pirc Memorial Juniors 202"]
[Site "Maribor"]
[Date "2020.08.12"]
[Round "1.2"]
[White "Guid, Taja"]
[Black "Heric, Meta"]
[Result "1/2-1/2"]
[ECO "E18"]
[WhiteElo "1705"]
[BlackElo "1287"]
[Annotator "NA RC"]
[PlyCount "68"]
[EventDate "2020.08.12"]
[EventType "tourn"]
[EventCountry "SLO"]
[SourceTitle "playchess.com"]
[Source "ChessBase"]
[SourceQuality "1"]
[TimeControl "3600+30"]

1. d4 {[%emt 0:00:00]} d5 {[%emt 0:00:00]} 2. c4 {[%emt 0:00:00]} e6 {[%emt 0:00:00]} 3. g3 {[%emt 0:00:00]} Nf6 {[%emt 0:00:00]} 4. Nf3 {[%emt 0:00:04]} Be7 {[%emt 0:00:11]} 5. Bg2 {[%emt 0:00:13]} O-O {[%emt 0:00:43]} 6. O-O {[%emt 0:00:06]} b6 {[%emt 0:00:53]} 7. cxd5 {[%emt 0:01:52]} exd5 {[%emt 0:02:05]} 8. Nc3 {[%emt 0:07:19]} Bb7 {[%emt 0:03:36]} 9. Qc2 {[%emt 0:04:47]} c5 {[%emt 0:08:22]} 10. Rd1 {[%emt 0:05:17]} Nbd7 {[%emt 0:08:33]} 11. h3 {[%emt 0:12:49]} Rc8 {[%emt 0:04:47]} 12. Be3 {[%emt 0:03:15]} Nb8 {[%emt 0:09:31]} 13. dxc5 {[%emt 0:06:50]} Bxc5 {[%emt 0:01:07]} 14. Bxc5 {[%emt 0:01:57]} Rxc5 {[%emt 0:00:33]} 15. Qd2 {[%emt 0:01:17]} Rc8 {[%emt 0:06:40]} 16. Nh4 {[%emt 0:02:42]} Re8 {[%emt 0:02:35]} 17. e3 {[%emt 0:02:39]} Ne4 {[%emt 0:01:48]} 18. Qe1 {[%emt 0:02:03]} Nxc3 {[%emt 0:02:36]} 19. bxc3 {[%emt 0:00:07]} Rc5 {[%emt 0:01:45]} 20. e4 {[%emt 0:01:11]} Qf6 {[%emt 0:00:53]} 21. Rac1 {[%emt 0:00:57]} dxe4 {[%emt 0:00:28]} 22. Rd4 {[%emt 0:00:35]} Rce5 {[%emt 0:02:17]} 23. Bh1 {[%emt 0:00:42]} Nc6 {[%emt 0:00:19]} 24. Rxe4 {[%emt 0:01:19]} Rxe4 {[%emt 0:00:45]} 25. Bxe4 {[%emt 0:00:05]} Qe6 {[%emt 0:01:54]} 26. f3 {[%emt 0:01:48]} Na5 {[%emt 0:01:01]} 27. Ng2 {[%emt 0:01:41]} Bxe4 {[%emt 0:00:32]} 28. fxe4 {[%emt 0:01:31]} Qxe4 {[%emt 0:00:44]} 29. Qxe4 {[%emt 0:00:41]} Rxe4 {[%emt 0:00:02]} 30. Rd1 {[%emt 0:00:09]} h6 {[%emt 0:00:21]} 31. Rd8+ {[%emt 0:00:34]} Kh7 {[%emt 0:00:07]} 32. Rd7 {[%emt 0:00:10]} Rc4 {[%emt 0:01:16]} 33. Rxf7 {[%emt 0:00:43]} Rxc3 {[%emt 0:00:06]} 34. Kh2 {[%emt 0:01:00]} Rc2 {[%emt 0:00:22]} 1/2-1/2

[Event "23rd Pirc Memorial Juniors 202"]
[Site "Maribor"]
[Date "2020.08.12"]
[Round "1.3"]
[White "Centrih, Aleks"]
[Black "Kodric, Gasper"]
[Result "1-0"]
[ECO "B12"]
[WhiteElo "1746"]
[BlackElo "1624"]
[Annotator "NA RC"]
[PlyCount "77"]
[EventDate "2020.08.12"]
[EventType "tourn"]
[EventCountry "SLO"]
[SourceTitle "playchess.com"]
[Source "ChessBase"]
[SourceQuality "1"]
[TimeControl "3600+30"]

1. e4 {[%emt 0:00:00]} c6 {[%emt 0:00:13]} 2. d4 {[%emt 0:00:00]} d5 {[%emt 0:00:06]} 3. e5 {[%emt 0:00:00]} c5 {[%emt 0:00:12]} 4. dxc5 {[%emt 0:00:00]} e6 {[%emt 0:00:04]} 5. Be3 {[%emt 0:00:00]} Nd7 {[%emt 0:00:07]} 6. Bb5 {[%emt 0:01:41]} Ne7 {[%emt 0:00:16]} 7. c3 {[%emt 0:01:38]} a6 {[%emt 0:00:55]} 8. Bxd7+ {[%emt 0:00:05]} Bxd7 {[%emt 0:00:46]} 9. Nf3 {[%emt 0:00:08]} Nf5 {[%emt 0:05:30]} 10. Bd4 {[%emt 0:00:06]} Qc7 {[%emt 0:03:46]} 11. b4 {[%emt 0:05:26]} a5 {[%emt 0:04:59]} 12. O-O {[%emt 0:03:16]} Be7 {[%emt 0:05:58]} 13. a3 {[%emt 0:02:19]} O-O {[%emt 0:03:44]} 14. Nbd2 {[%emt 0:03:22]} f6 {[%emt 0:13:57]} 15. Qe2 {[%emt 0:05:47]} Nxd4 {[%emt 0:15:03]} 16. cxd4 {[%emt 0:00:07]} b6 {[%emt 0:01:07]} 17. Rfc1 {[%emt 0:06:20]} Rfc8 {[%emt 0:01:42]} 18. c6 {[%emt 0:05:02]} Be8 {[%emt 0:09:23]} 19. b5 {[%emt 0:01:25]} f5 {[%emt 0:01:01]} 20. Qe3 {[%emt 0:05:38]} h5 {[%emt 0:00:35]} 21. Ng5 {[%emt 0:01:22]} Bf7 {[%emt 0:00:32]} 22. Ndf3 {[%emt 0:01:16]} g6 {[%emt 0:00:26]} 23. Nxf7 {[%emt 0:00:10]} Kxf7 {[%emt 0:00:10]} 24. Ng5+ {[%emt 0:00:05]} Bxg5 {[%emt 0:00:11]} 25. Qxg5 {[%emt 0:00:06]} Qe7 {[%emt 0:00:52]} 26. Qxe7+ {[%emt 0:01:32]} Kxe7 {[%emt 0:00:05]} 27. a4 {[%emt 0:00:06]} h4 {[%emt 0:01:11]} 28. h3 {[%emt 0:01:03]} f4 {[%emt 0:00:37]} 29. g3 {[%emt 0:01:09]} f3 {[%emt 0:00:28]} 30. Kh2 {[%emt 0:01:41]} Rf8 {[%emt 0:00:31]} 31. Rc3 {[%emt 0:01:23]} Rf5 {[%emt 0:00:26]} 32. c7 {[%emt 0:03:35]} Kd7 {[%emt 0:00:33]} 33. Rac1 {[%emt 0:00:51]} Rff8 {[%emt 0:01:04]} 34. c8=Q+ {[%emt 0:00:36]} Raxc8 {[%emt 0:00:00]} 35. Rxc8 {[%emt 0:00:06]} hxg3+ {[%emt 0:00:25]} 36. Kxg3 {[%emt 0:00:04]} Rxc8 {[%emt 0:00:05]} 37. Rxc8 {[%emt 0:00:06]} Kxc8 {[%emt 0:00:05]} 38. Kg4 {[%emt 0:00:13]} Kd7 {[%emt 0:00:16]} 39. Kg5 {[%emt 0:00:04]} 1-0

[Event "23rd Pirc Memorial Juniors 202"]
[Site "Maribor"]
[Date "2020.08.12"]
[Round "1.4"]
[White "Javornik, Lina"]
[Black "Kozlovic, Jernej"]
[Result "0-1"]
[ECO "C47"]
[WhiteElo "1330"]
[BlackElo "1445"]
[Annotator "NA RC"]
[PlyCount "70"]
[EventDate "2020.08.12"]
[EventType "tourn"]
[EventCountry "SLO"]
[SourceTitle "playchess.com"]
[Source "ChessBase"]
[SourceQuality "1"]
[TimeControl "3600+30"]

1. e4 {[%emt 0:00:00]} e5 {[%emt 0:00:00]} 2. Nf3 {[%emt 0:00:00]} Nc6 {[%emt 0:00:00]} 3. Nc3 {[%emt 0:00:00]} Nf6 {[%emt 0:00:31]} 4. d4 {[%emt 0:00:00]} exd4 {[%emt 0:00:23]} 5. Nxd4 {[%emt 0:00:12]} Bb4 {[%emt 0:00:45]} 6. Nxc6 {[%emt 0:00:51]} bxc6 {[%emt 0:00:04]} 7. Bd3 {[%emt 0:00:35]} O-O {[%emt 0:00:54]} 8. O-O {[%emt 0:00:50]} Re8 {[%emt 0:03:18]} 9. Bg5 {[%emt 0:04:41]} h6 {[%emt 0:02:10]} 10. Bxf6 {[%emt 0:00:54]} Qxf6 {[%emt 0:00:16]} 11. Na4 {[%emt 0:02:33]} d5 {[%emt 0:06:02]} 12. f3 {[%emt 0:02:50]} Bd6 {[%emt 0:06:48]} 13. Rc1 {[%emt 0:04:02]} Qd4+ {[%emt 0:07:35]} 14. Kh1 {[%emt 0:04:25]} Qxa4 {[%emt 0:00:30]} 15. Re1 {[%emt 0:01:21]} Bd7 {[%emt 0:03:31]} 16. b3 {[%emt 0:05:40]} Qd4 {[%emt 0:01:56]} 17. c3 {[%emt 0:02:13]} Qe5 {[%emt 0:00:28]} 18. g3 {[%emt 0:01:03]} Qh5 {[%emt 0:00:29]} 19. Rg1 {[%emt 0:02:01]} Bc5 {[%emt 0:01:52]} 20. Re1 {[%emt 0:01:35]} Bf2 {[%emt 0:00:20]} 21. g4 {[%emt 0:06:27]} Qh3 {[%emt 0:02:08]} 22. Bf1 {[%emt 0:01:14]} Qh4 {[%emt 0:00:23]} 23. Re2 {[%emt 0:01:05]} Bg3 {[%emt 0:03:20]} 24. Rg2 {[%emt 0:01:58]} Bf4 {[%emt 0:00:34]} 25. Rcc2 {[%emt 0:01:00]} Rad8 {[%emt 0:02:24]} 26. h3 {[%emt 0:02:38]} Qxh3+ {[%emt 0:00:30]} 27. Rh2 {[%emt 0:00:08]} Qg3 {[%emt 0:02:03]} 28. Rh3 {[%emt 0:02:25]} Qxh3+ {[%emt 0:06:29]} 29. Bxh3 {[%emt 0:00:11]} dxe4 {[%emt 0:00:08]} 30. fxe4 {[%emt 0:03:20]} Bf5 {[%emt 0:02:12]} 31. Qxd8 {[%emt 0:03:09]} Bxe4+ {[%emt 0:00:03]} 32. Kg1 {[%emt 0:00:26]} Rxd8 {[%emt 0:00:08]} 33. Re2 {[%emt 0:01:11]} Rd1+ {[%emt 0:01:12]} 34. Kf2 {[%emt 0:00:43]} Rd2 {[%emt 0:00:19]} 35. Kf1 {[%emt 0:01:43]} Bd3 {[%emt 0:00:10]} 0-1

[Event "23rd Pirc Memorial Juniors 202"]
[Site "Maribor"]
[Date "2020.08.12"]
[Round "2.1"]
[White "Drevensek, Gasper"]
[Black "Javornik, Nik"]
[Result "0-1"]
[ECO "B23"]
[WhiteElo "1446"]
[BlackElo "1786"]
[Annotator "NA"]
[PlyCount "54"]
[EventDate "2020.08.12"]
[EventType "tourn"]
[EventCountry "SLO"]
[SourceTitle "playchess.com"]
[Source "ChessBase"]
[SourceQuality "1"]
[TimeControl "3600+30"]

1. e4 {[%emt 0:00:00]} c5 {[%emt 0:00:00]} 2. Nc3 {[%emt 0:00:00]} Nc6 {[%emt 0:00:00]} 3. f4 {[%emt 0:00:13]} g6 {[%emt 0:00:02]} 4. Nf3 {[%emt 0:00:23]} Bg7 {[%emt 0:00:09]} 5. Bb5 {[%emt 0:01:07]} Nd4 {[%emt 0:00:05]} 6. O-O {[%emt 0:01:04]} e6 {[%emt 0:00:38]} 7. e5 {[%emt 0:00:50]} a6 {[%emt 0:03:05]} 8. Bd3 {[%emt 0:04:02]} d6 {[%emt 0:02:41]} 9. Ne4 {[%emt 0:02:48]} dxe5 {[%emt 0:03:31]} 10. fxe5 {[%emt 0:01:47]} f5 {[%emt 0:04:41]} 11. exf6 {[%emt 0:03:08]} Nxf6 {[%emt 0:00:12]} 12. Nxc5 {[%emt 0:01:09]} Nxf3+ {[%emt 0:00:30]} 13. Qxf3 {[%emt 0:10:15]} Qd4+ {[%emt 0:00:08]} 14. Kh1 {[%emt 0:02:02]} Qxc5 {[%emt 0:00:02]} 15. Qg3 {[%emt 0:03:36]} O-O {[%emt 0:01:17]} 16. Re1 {[%emt 0:04:35]} Nh5 {[%emt 0:06:22]} 17. Qg4 {[%emt 0:03:04]} e5 {[%emt 0:01:44]} 18. Qe4 {[%emt 0:00:19]} Bf5 {[%emt 0:01:10]} 19. Qxb7 {[%emt 0:02:28]} Bxd3 {[%emt 0:00:25]} 20. cxd3 {[%emt 0:00:07]} Qf2 {[%emt 0:00:29]} 21. Rg1 {[%emt 0:00:46]} Nf4 {[%emt 0:00:50]} 22. b3 {[%emt 0:01:44]} e4 {[%emt 0:03:47]} 23. Rb1 {[%emt 0:03:05]} Ne2 {[%emt 0:03:31]} 24. Ba3 {[%emt 0:02:32]} Nxg1 {[%emt 0:00:32]} 25. Bxf8 {[%emt 0:02:12]} Rxf8 {[%emt 0:00:02]} 26. Rxg1 {[%emt 0:00:14]} Bd4 {[%emt 0:00:08]} 27. Qd5+ {[%emt 0:05:37]} Kh8 {[%emt 0:00:08]} 0-1

[Event "23rd Pirc Memorial Juniors 202"]
[Site "Maribor"]
[Date "2020.08.12"]
[Round "2.2"]
[White "Kozlovic, Jernej"]
[Black "Lavrencic, Matic"]
[Result "1/2-1/2"]
[ECO "B50"]
[WhiteElo "1445"]
[BlackElo "1902"]
[Annotator "ChessBase"]
[PlyCount "76"]
[EventDate "2020.08.12"]
[EventType "tourn"]
[EventCountry "SLO"]
[SourceTitle "playchess.com"]
[Source "ChessBase"]
[SourceQuality "1"]
[TimeControl "3600+30"]

1. e4 {[%emt 0:00:00]} c5 {[%emt 0:00:00]} 2. Nf3 {[%emt 0:00:00]} d6 {[%emt 0:00:00]} 3. c3 {[%emt 0:00:00]} Nf6 {[%emt 0:00:00]} 4. h3 {[%emt 0:00:03]} g6 {[%emt 0:00:28]} 5. Bd3 {[%emt 0:00:14]} Bg7 {[%emt 0:00:06]} 6. Bc2 {[%emt 0:00:26]} Nc6 {[%emt 0:00:41]} 7. d4 {[%emt 0:01:29]} cxd4 {[%emt 0:01:26]} 8. cxd4 {[%emt 0:00:08]} O-O {[%emt 0:01:15]} 9. Nc3 {[%emt 0:03:37]} e5 {[%emt 0:00:51]} 10. O-O {[%emt 0:04:00]} a6 {[%emt 0:03:38]} 11. Bg5 {[%emt 0:05:33]} h6 {[%emt 0:01:11]} 12. Bh4 {[%emt 0:01:27]} g5 {[%emt 0:00:26]} 13. Bg3 {[%emt 0:00:17]} Nh5 {[%emt 0:05:04]} 14. Nxe5 {[%emt 0:23:44]} Nxg3 {[%emt 0:01:19]} 15. Nxc6 {[%emt 0:00:31]} bxc6 {[%emt 0:00:10]} 16. fxg3 {[%emt 0:00:07]} Qb6 {[%emt 0:00:08]} 17. Ne2 {[%emt 0:01:31]} Qxb2 {[%emt 0:03:25]} 18. Qd3 {[%emt 0:05:40]} Qb5 {[%emt 0:01:51]} 19. Rab1 {[%emt 0:02:14]} Qxd3 {[%emt 0:00:39]} 20. Bxd3 {[%emt 0:00:01]} Be6 {[%emt 0:00:52]} 21. Rb6 {[%emt 0:00:46]} d5 {[%emt 0:06:47]} 22. Rxc6 {[%emt 0:04:09]} dxe4 {[%emt 0:01:04]} 23. Bxe4 {[%emt 0:01:28]} Bxa2 {[%emt 0:02:01]} 24. Ra1 {[%emt 0:01:24]} Be6 {[%emt 0:06:03]} 25. Ra5 {[%emt 0:05:07]} Bd7 {[%emt 0:05:38]} 26. Rcxa6 {[%emt 0:02:39]} Rxa6 {[%emt 0:00:35]} 27. Rxa6 {[%emt 0:00:04]} Bb5 {[%emt 0:01:15]} 28. Ra2 {[%emt 0:00:12]} Bxe2 {[%emt 0:01:44]} 29. Rxe2 {[%emt 0:00:03]} Bxd4+ {[%emt 0:00:06]} 30. Kf1 {[%emt 0:00:54]} Kg7 {[%emt 0:02:27]} 31. Rd2 {[%emt 0:00:46]} Be5 {[%emt 0:00:09]} 32. g4 {[%emt 0:00:35]} Re8 {[%emt 0:01:01]} 33. Bd5 {[%emt 0:00:41]} Bg3 {[%emt 0:24:10]} 34. Re2 {[%emt 0:01:01]} Rd8 {[%emt 0:00:00]} 35. Rd2 {[%emt 0:00:11]} Rd6 {[%emt 0:00:00]} 36. Ke2 {[%emt 0:00:09]} Bf4 {[%emt 0:00:00]} 37. Rd1 {[%emt 0:00:10]} Rb6 {[%emt 0:00:00]} 38. Kd3 {[%emt 0:01:40]} Kf6 {[%emt 0:00:00]} 1/2-1/2

[Event "23rd Pirc Memorial Juniors 202"]
[Site "Maribor"]
[Date "2020.08.12"]
[Round "2.3"]
[White "Kodric, Gasper"]
[Black "Javornik, Lina"]
[Result "1-0"]
[ECO "A20"]
[WhiteElo "1624"]
[BlackElo "1330"]
[Annotator "NA"]
[PlyCount "81"]
[EventDate "2020.08.12"]
[EventType "tourn"]
[EventCountry "SLO"]
[SourceTitle "playchess.com"]
[Source "ChessBase"]
[SourceQuality "1"]
[TimeControl "3600+30"]

1. c4 {[%emt 0:00:00]} e5 {[%emt 0:00:00]} 2. g3 {[%emt 0:00:00]} Nf6 {[%emt 0:00:21]} 3. Bg2 {[%emt 0:00:00]} c6 {[%emt 0:01:04]} 4. d4 {[%emt 0:00:41]} d5 {[%emt 0:06:54]} 5. dxe5 {[%emt 0:00:39]} Ng4 {[%emt 0:03:26]} 6. cxd5 {[%emt 0:01:09]} Qb6 {[%emt 0:01:39]} 7. e3 {[%emt 0:01:56]} Nxe5 {[%emt 0:04:51]} 8. Ne2 {[%emt 0:11:09]} Bb4+ {[%emt 0:01:42]} 9. Nbc3 {[%emt 0:01:28]} O-O {[%emt 0:01:39]} 10. a3 {[%emt 0:01:02]} Bxc3+ {[%emt 0:03:04]} 11. Nxc3 {[%emt 0:01:20]} Qa6 {[%emt 0:02:17]} 12. Qe2 {[%emt 0:04:55]} Nd3+ {[%emt 0:01:46]} 13. Kd2 {[%emt 0:02:48]} Nc5 {[%emt 0:02:17]} 14. Qxa6 {[%emt 0:02:15]} Nbxa6 {[%emt 0:00:17]} 15. Kc2 {[%emt 0:02:26]} Bf5+ {[%emt 0:01:04]} 16. e4 {[%emt 0:00:51]} Bg6 {[%emt 0:00:41]} 17. dxc6 {[%emt 0:01:13]} bxc6 {[%emt 0:00:20]} 18. f4 {[%emt 0:03:43]} f6 {[%emt 0:03:45]} 19. b4 {[%emt 0:02:53]} Ne6 {[%emt 0:00:54]} 20. Be3 {[%emt 0:00:40]} c5 {[%emt 0:02:08]} 21. b5 {[%emt 0:07:38]} Nac7 {[%emt 0:01:05]} 22. f5 {[%emt 0:00:45]} Nd4+ {[%emt 0:00:16]} 23. Bxd4 {[%emt 0:00:12]} cxd4 {[%emt 0:00:11]} 24. fxg6 {[%emt 0:01:01]} dxc3 {[%emt 0:00:11]} 25. gxh7+ {[%emt 0:00:23]} Kxh7 {[%emt 0:00:18]} 26. a4 {[%emt 0:00:49]} Rac8 {[%emt 0:00:43]} 27. Rhd1 {[%emt 0:02:12]} Ne6 {[%emt 0:04:10]} 28. Bh3 {[%emt 0:00:45]} f5 {[%emt 0:01:48]} 29. Bxf5+ {[%emt 0:11:41]} g6 {[%emt 0:00:32]} 30. Bxe6 {[%emt 0:00:44]} Rf2+ {[%emt 0:00:16]} 31. Kc1 {[%emt 0:02:37]} Rc5 {[%emt 0:00:55]} 32. Ra2 {[%emt 0:01:55]} c2 {[%emt 0:01:41]} 33. Re1 {[%emt 0:01:14]} Rc3 {[%emt 0:02:21]} 34. a5 {[%emt 0:01:29]} a6 {[%emt 0:03:58]} 35. b6 {[%emt 0:00:25]} Rd3 {[%emt 0:00:48]} 36. Rxc2 {[%emt 0:00:20]} Rxc2+ {[%emt 0:00:16]} 37. Kxc2 {[%emt 0:00:06]} Rd8 {[%emt 0:00:10]} 38. b7 {[%emt 0:00:13]} Rb8 {[%emt 0:00:16]} 39. Bc8 {[%emt 0:00:05]} Kg7 {[%emt 0:00:21]} 40. Rd1 {[%emt 0:00:12]} Kf7 {[%emt 0:00:41]} 41. Rd6 {[%emt 0:00:10]} 1-0

[Event "23rd Pirc Memorial Juniors 202"]
[Site "Maribor"]
[Date "2020.08.12"]
[Round "2.4"]
[White "Heric, Meta"]
[Black "Centrih, Aleks"]
[Result "0-1"]
[ECO "E81"]
[WhiteElo "1287"]
[BlackElo "1746"]
[Annotator "NA"]
[PlyCount "112"]
[EventDate "2020.08.12"]
[EventType "tourn"]
[EventCountry "SLO"]
[SourceTitle "playchess.com"]
[Source "ChessBase"]
[SourceQuality "1"]
[TimeControl "3600+30"]

1. d4 {[%emt 0:00:00]} Nf6 {[%emt 0:00:16]} 2. c4 {[%emt 0:00:00]} g6 {[%emt 0:00:04]} 3. Nc3 {[%emt 0:00:00]} Bg7 {[%emt 0:00:04]} 4. e4 {[%emt 0:00:00]} d6 {[%emt 0:00:04]} 5. f3 {[%emt 0:00:50]} O-O {[%emt 0:00:29]} 6. Be3 {[%emt 0:00:10]} c5 {[%emt 0:03:40]} 7. Nge2 {[%emt 0:00:28]} Nc6 {[%emt 0:05:18]} 8. Qd2 {[%emt 0:01:37]} Nd7 {[%emt 0:06:20]} 9. d5 {[%emt 0:03:04]} Nce5 {[%emt 0:00:25]} 10. b3 {[%emt 0:01:13]} Qa5 {[%emt 0:07:09]} 11. h3 {[%emt 0:10:32]} Nf6 {[%emt 0:02:12]} 12. f4 {[%emt 0:01:25]} Ned7 {[%emt 0:00:09]} 13. Rc1 {[%emt 0:01:56]} a6 {[%emt 0:03:35]} 14. Ng3 {[%emt 0:02:53]} h5 {[%emt 0:03:31]} 15. Bd3 {[%emt 0:00:57]} b5 {[%emt 0:05:05]} 16. cxb5 {[%emt 0:01:29]} axb5 {[%emt 0:00:05]} 17. Bxb5 {[%emt 0:00:57]} h4 {[%emt 0:01:06]} 18. Bxd7 {[%emt 0:02:06]} Nxd7 {[%emt 0:01:50]} 19. Nge2 {[%emt 0:00:40]} Ba6 {[%emt 0:01:58]} 20. f5 {[%emt 0:06:10]} Bxe2 {[%emt 0:03:21]} 21. Nxe2 {[%emt 0:03:03]} Qxa2 {[%emt 0:02:01]} 22. Qxa2 {[%emt 0:01:25]} Rxa2 {[%emt 0:00:05]} 23. Rb1 {[%emt 0:05:01]} Rb8 {[%emt 0:01:51]} 24. Nf4 {[%emt 0:07:35]} gxf5 {[%emt 0:02:07]} 25. exf5 {[%emt 0:00:43]} Ra3 {[%emt 0:00:12]} 26. O-O {[%emt 0:00:33]} Raxb3 {[%emt 0:00:17]} 27. Rxb3 {[%emt 0:00:16]} Rxb3 {[%emt 0:00:05]} 28. Bf2 {[%emt 0:00:24]} Bf6 {[%emt 0:02:38]} 29. Nh5 {[%emt 0:01:19]} Rd3 {[%emt 0:01:52]} 30. Nxf6+ {[%emt 0:01:24]} Nxf6 {[%emt 0:00:06]} 31. Bxh4 {[%emt 0:00:26]} Rxd5 {[%emt 0:02:28]} 32. g4 {[%emt 0:01:16]} Rd4 {[%emt 0:02:53]} 33. Re1 {[%emt 0:00:55]} Kf8 {[%emt 0:00:12]} 34. Bg5 {[%emt 0:00:42]} Re4 {[%emt 0:01:49]} 35. Rxe4 {[%emt 0:01:54]} Nxe4 {[%emt 0:00:07]} 36. Be3 {[%emt 0:00:11]} Kg7 {[%emt 0:03:37]} 37. h4 {[%emt 0:00:39]} d5 {[%emt 0:02:09]} 38. Bc1 {[%emt 0:02:19]} d4 {[%emt 0:01:29]} 39. Bb2 {[%emt 0:00:18]} f6 {[%emt 0:01:07]} 40. Kf1 {[%emt 0:00:28]} d3 {[%emt 0:00:20]} 41. Ke1 {[%emt 0:00:24]} c4 {[%emt 0:00:09]} 42. g5 {[%emt 0:01:06]} c3 {[%emt 0:00:16]} 43. Bxc3 {[%emt 0:01:03]} Nxc3 {[%emt 0:00:06]} 44. Kd2 {[%emt 0:00:07]} Ne4+ {[%emt 0:00:32]} 45. Kxd3 {[%emt 0:00:21]} Ng3 {[%emt 0:00:19]} 46. gxf6+ {[%emt 0:00:43]} Kxf6 {[%emt 0:00:13]} 47. Kd2 {[%emt 0:00:24]} Kxf5 {[%emt 0:00:04]} 48. Ke3 {[%emt 0:00:27]} e5 {[%emt 0:01:28]} 49. Kf3 {[%emt 0:00:12]} Nh5 {[%emt 0:00:05]} 50. Ke3 {[%emt 0:00:24]} e4 {[%emt 0:00:05]} 51. Ke2 {[%emt 0:00:13]} Kf4 {[%emt 0:00:06]} 52. Kf2 {[%emt 0:00:15]} e3+ {[%emt 0:00:04]} 53. Ke2 {[%emt 0:00:11]} Ke4 {[%emt 0:00:04]} 54. Ke1 {[%emt 0:00:13]} Kf3 {[%emt 0:00:05]} 55. Kf1 {[%emt 0:01:32]} e2+ {[%emt 0:00:06]} 56. Ke1 {[%emt 0:00:12]} Nf4 {[%emt 0:00:05]} 0-1